fUSD/lending_fUSD_20240811
["ID","MTS","AMOUNT","RATE_DAILY","PERIOD"]
[334658488,1723409433247,-150.0,0.00010974,2]
[334658489,1723409433257,-150.0,0.00010979,2]
[334658490,1723409433266,-150.0,0.00010982,2]
[334658491,1723409433275,-150.0,0.00010985,2]
[334658492,1723409433284,-150.0,0.00010985,2]
[334658493,1723409433294,-163.34208761,0.00010997,2]
[334658494,1723409433304,-150.01,0.00010999,2]
[334658495,1723409433313,-500.0,0.00010999,2]
[334658496,1723409433323,-500.0,0.00010999,2]
[334658497,1723409433332,-500.0,0.00010999,2]
[334658498,1723409433341,-500.0,0.00010999,2]
[334658499,1723409433354,-500.0,0.00010999,2]
[334658500,1723409433363,-23.0482802,0.00010999,2]
[334658501,1723409433375,-476.9517198,0.00010999,2]
[334658502,1723409433385,-500.0,0.00010999,2]
[334658503,1723409433394,-17.92403464,0.00010999,2]
[334658504,1723409433489,-0.17115953,0.00010999,2]
[334658505,1723409433500,-562.55963605,0.00010999,2]
[334658506,1723409433510,-500.0,0.00010999,2]
[334658507,1723409433519,-500.0,0.00010999,2]
[334658508,1723409433529,-500.0,0.00010999,2]
[334658509,1723409433538,-500.0,0.00010999,2]
[334658510,1723409433548,-500.0,0.00010999,2]
[334658511,1723409433557,-500.0,0.00010999,2]
[334658512,1723409433567,-500.0,0.00010999,2]
[334658513,1723409433576,-384.45571542,0.00010999,2]
[334658514,1723409433585,-500.0,0.00010999,2]
[334658515,1723409433595,-500.0,0.00010999,2]
[334658516,1723409433604,-500.0,0.00010999,2]
[334658517,1723409433616,-500.0,0.00010999,2]
[334658518,1723409433626,-500.0,0.00010999,2]
[334658519,1723409433636,-500.0,0.00010999,2]
[334658520,1723409433645,-500.0,0.00010999,2]
[334658521,1723409433655,-364.71457646,0.00010999,2]
[334658522,1723409433667,-135.28542354,0.00010999,2]
[334658523,1723409433676,-500.0,0.00010999,2]
[334658524,1723409433687,-500.0,0.00010999,2]
[334658525,1723409433697,-500.0,0.00010999,2]
[334658526,1723409433707,-500.0,0.00010999,2]
[334658527,1723409433717,-500.0,0.00010999,2]
[334658528,1723409433727,-236.07792765,0.00010999,2]
[334658529,1723409433742,-263.92207235,0.00010999,2]
[334658530,1723409433751,-277.08714755,0.00010999,2]
[334658531,1723409433763,-222.91285245,0.00010999,2]
[334658532,1723409433773,-279.9943765,0.00010999,2]
[334658533,1723409433812,-220.0056235,0.00010999,2]
[334658534,1723409433821,-411.1043755,0.00010999,2]
[334658535,1723409433832,-88.8956245,0.00010999,2]
[334658536,1723409433842,-500.0,0.00010999,2]
[334658537,1723409433851,-633.55685492,0.00011,2]
[334658538,1723409433864,-140.44314508,0.00011,2]
[334658539,1723409433873,-5714.23685492,0.00011,2]
[334658540,1723409433884,-44493.39427288,0.00011,2]
[334658541,1723409433895,-567.14,0.00011,2]
[334658542,1723409433906,-5881.6,0.00011,2]
[334658543,1723409433917,-2538.47731458,0.00011,2]
[334658544,1723409433991,-5145.2,0.00011,2]
[334658545,1723409434002,-270.03107511,0.00011,2]
[334658546,1723409434014,-450.50241639,0.00011,2]
[334658547,1723409434025,-635.97483763,0.00011,2]
[334658548,1723409434036,-530.0,0.00011,2]
[334658549,1723409434048,-865.31617129,0.00011,2]
[334658550,1723409434059,-325.49736214,0.00011,2]
[334658551,1723409434074,-438.97877864,0.00011,2]
[334658552,1723409434085,-27639.6713085,0.00011,2]
[334658553,1723409434096,-7729.42497305,0.00011,2]
[334658554,1723409434107,-684.71908266,0.00011,2]
[334658571,1723409438341,-189.55387215,0.000109,2]
[334658572,1723409438350,-868.58612785,0.00011,2]
[334658573,1723409438361,-602.6328,0.00011,2]
[334658574,1723409438373,-4617.14877,0.00011,2]
[334658575,1723409438384,-569.89984797,0.00011,2]
[334658576,1723409438531,-6445.00021091,0.00011,2]
[334658577,1723409438543,-10978.45424228,0.00011,2]
[334658578,1723409438555,-32949.05035539,0.00011,2]
[334658579,1723409438566,-5889.5837,0.00011,2]
[334658580,1723409438582,-7293.58596012,0.00011,2]
[334658581,1723409438593,-14870.92097106,0.00011,2]
[334658582,1723409438624,-791.07402663,9.962e-05,2]
[334658583,1723409438634,-22228.15186474,0.00011,2]
[334658584,1723409438678,-563.31326908,0.00011,2]
[334658585,1723409438691,-5584.69744375,0.00011,2]
[334658586,1723409438702,-17108.04428109,0.00011,2]
[334658587,1723409438713,-12698.10889005,0.00011,2]
[334658588,1723409438733,-867.57638522,0.00011,2]
[334658589,1723409438747,-1520.39891193,0.00011,2]
[334658590,1723409438758,-12133.84786113,0.00011,2]
[334658591,1723409438774,-810.95000243,0.00011,2]
[334658592,1723409438786,-5860.0,0.00011,2]
[334658612,1723409440304,-200.11935118,0.00010999,2]
[334658613,1723409440314,-692.0,0.00011,2]
[334658614,1723409440323,-6367.55394913,0.00011,2]
[334658616,1723409440361,-47213.35892577,0.00011,2]
[334658617,1723409440373,-580.8,0.00011,2]
[334658618,1723409440385,-12477.20885327,0.00011,2]
[334658619,1723409440421,-26452.72188188,0.00011,2]
[334658620,1723409440433,-73415.25018312,0.00011,2]
[334658621,1723409440564,-225924.42606684,0.00011,2]
[334658622,1723409440576,-61126.45759685,0.00011,2]
[334658623,1723409440585,-70091.3684827,0.00011,2]
[334658624,1723409440596,-1411.2,0.00011,2]
[334658625,1723409440608,-2347.48,0.00011,2]
[334658626,1723409440635,-56457.2370869,0.00011,2]
[334658627,1723409440646,-1730.84596,0.00011,2]
[334658628,1723409440658,-430.98943586,0.00011,2]
[334658630,1723409440670,-1021.199984,0.00011,2]
[334658631,1723409440681,-1173.59475405,0.00011,2]
[334658663,1723409443231,-1508.74666698,0.000109,2]
[334658665,1723409443242,-170.79932157,0.000109,2]
[334658667,1723409443251,-1687.06427597,0.00011,2]
[334658669,1723409443281,-5852.0,0.00011,2]
[334658670,1723409443293,-212152.90209098,0.00011,2]
[334658671,1723409443302,-151.0,0.00011,2]
[334658672,1723409443312,-151.0,0.00011,2]
[334658673,1723409443321,-151.0,0.00011,2]
[334658674,1723409443331,-151.77003,0.00011,2]
[334658675,1723409443340,-151.0,0.00011,2]
[334658676,1723409443349,-151.0,0.00011,2]
[334658677,1723409443358,-151.0,0.00011,2]
[334658678,1723409443368,-151.0,0.00011,2]
[334658679,1723409443377,-26506.99255795,0.00011,2]
[334658690,1723409444271,-2926.1317,0.00011,2]
[334658705,1723409446298,-2454.7959,0.000108,2]
[334658706,1723409446308,-2001.8766,0.00011,2]
[334658707,1723409446356,-188126.17105494,0.00011,2]
[334658708,1723409446476,-451.6558,0.00011,2]
[334658709,1723409446535,-638.325,0.00011,2]
[334658710,1723409446547,-1804.04704411,0.00011,2]
[334658729,1723409487789,500.0,8.22e-05,2]
[334658730,1723409489414,201.98544953,8.22e-05,2]
[334658731,1723409493241,500.0,8.22e-05,2]
[334658732,1723409540921,791.07402663,8.22e-05,2]
[334658735,1723409626916,791.07402663,8.22e-05,2]
[334658736,1723409630925,-524.35062418,9.864e-05,2]
[334658737,1723409630945,-500.0,9.864e-05,2]
[334658738,1723409630965,-275.64391923,9.963e-05,2]
[334658739,1723409630985,-526.66030387,9.963e-05,2]
[334658740,1723409631006,-550.0,0.0001,2]
[334658741,1723409631029,-216.31,0.00010109,2]
[334658742,1723409631051,-580.15,0.00010172,2]
[334658743,1723409631072,-192.14261377,0.00010562,2]
[334658744,1723409631093,-300.0,0.00010661,2]
[334658745,1723409631116,-596.8,0.00010662,2]
[334658746,1723409631136,-27584.6636789,0.00010662,2]
[334658747,1723409631160,-140693.545854,0.00010662,2]
[334658748,1723409631184,-156.4355,0.000108,2]
[334658749,1723409631207,-32364.2297,0.000108,2]
[334658750,1723409631230,-1243.5,0.000108,2]
[334658751,1723409631256,-499.99,0.000108,2]
[334658752,1723409631280,-2060.83811,0.0001089,2]
[334658753,1723409631305,-299.96327378,0.000109,2]
[334658754,1723409631329,-162.71643941,0.000109,2]
[334658755,1723409631352,-1425.14,0.000109,2]
[334658756,1723409631376,-256.3785692,0.000109,2]
[334658757,1723409631400,-408.79654691,0.000109,2]
[334658758,1723409631423,-1000.0,0.000109,2]
[334658759,1723409631446,-2500.0,0.000109,2]
[334658760,1723409631468,-164.33651266,0.000109,2]
[334658761,1723409631492,-150.0,0.00010959,2]
[334658762,1723409631515,-150.0,0.00010999,2]
[334658763,1723409631539,-320.74577537,0.00010999,2]
[334658764,1723409631560,-623.0,0.00011,2]
[334658765,1723409631586,-168976.96242518,0.00011,2]
[334658766,1723409631613,-13777434.31797277,0.00011,2]
[334658767,1723409631632,-500.0,0.00011,2]
[334658768,1723409631653,-2402445.04505191,0.00011,2]
[334658769,1723409631678,-372.08019945,0.00011,2]
[334658770,1723409631699,-2000.0,0.00011,2]
[334658771,1723409631722,-200.0,0.00011,2]
[334658772,1723409631743,-200.0,0.00011,2]
[334658773,1723409631763,-1715.894,0.00011,2]
[334658774,1723409631784,-200.0,0.00011,2]
[334658775,1723409631805,-810.0,0.00011,2]
[334658776,1723409631824,-556.0,0.00011,2]
[334658777,1723409631846,-1136.0,0.00011,2]
[334658778,1723409631868,-270.394,0.00011,2]
[334658779,1723409631890,-164.752,0.00011,2]
[334658780,1723409631910,-551.0,0.00011,2]
[334658781,1723409631933,-1894.0,0.00011,2]
[334658782,1723409631956,-300.917,0.00011,2]
[334658783,1723409631975,-3291.0,0.00011,2]
[334658784,1723409631995,-1186.0,0.00011,2]
[334658785,1723409632016,-200.0,0.00011,2]
[334658786,1723409632036,-1671.0,0.00011,2]
[334658787,1723409632056,-164.68926633,0.00011,2]
[334658788,1723409632077,-5046.366,0.00011,2]
[334658789,1723409632097,-5841.0,0.00011,2]
[334658790,1723409632120,-5133.0,0.00011,2]
[334658791,1723409632141,-289.0,0.00011,2]
[334658792,1723409632162,-1075.0,0.00011,2]
[334658793,1723409632183,-150.0,0.00011,2]
[334658794,1723409632204,-619.99,0.00011,2]
[334658795,1723409632225,-10731.9842938,0.00011006,2]
[334658796,1723409632246,-955.0050221,0.00011006,2]
[334658797,1723409637962,14242.66766014,9.963e-05,2]
[334658798,1723409640642,300.0,0.00011013,2]
[334658799,1723409640976,940.13088645,0.000109,2]
[334658800,1723409642845,150.0,0.00011013,2]
[334658801,1723409664003,228.87032814,8.22e-05,2]
[334658802,1723409671398,1050.60325905,0.00011013,2]
[334658803,1723409671643,150.0,0.00010759,2]
[334658804,1723409673620,500.0,0.00011013,2]
[334658805,1723409673957,500.0,0.00011013,2]
[334658806,1723409674039,588.44557155,0.00011013,2]
[334658807,1723409698154,372.08019945,0.00011,2]
[334658808,1723409701546,177.13,0.00010885,2]
[334658809,1723409701670,763.48,8.967e-05,2]
[334658810,1723409705373,2000.0,0.00011013,2]
[334658811,1723409710479,200.0,0.00011013,2]
[334658812,1723409712165,526.99,0.00011,2]
[334658813,1723409713087,372.08019945,0.00011,2]
[334658814,1723409715436,791.07402663,0.00011013,2]
[334658815,1723409721024,1075.0,0.00011001,2]
[334658816,1723409737494,162.71643941,0.00011013,2]
[334658817,1723409744456,299.96327378,0.00011013,2]
[334658818,1723409747495,162.71643941,0.00011013,2]
[334658819,1723409753126,372.08019945,0.00011,2]
[334658820,1723409756352,1050.60325905,0.00011013,2]
[334658821,1723409760554,300.0,0.00011013,2]
[334658822,1723409765836,449.54781075,0.00011013,2]
[334658823,1723409774470,413.11934723,0.00011013,2]
[334658824,1723409775234,1095.54895148,0.00010793,2]
[334658825,1723409780084,181.82632038,0.00011013,2]
[334658826,1723409780985,449.54781075,0.00011013,2]
[334658827,1723409788556,170.49309143,0.00011013,2]
[334658828,1723409792185,250.0,0.00010959,2]
[334658829,1723409809794,1085.915794,0.00027,120]
[334658830,1723409815432,408.74214685,0.00011013,2]
[334658831,1723409820770,300.0,0.00011013,2]
[334658832,1723409821349,1076.11260089,0.00010793,2]
[334658833,1723409821376,300.0,0.00011013,2]
[334658834,1723409827643,-154395.0,0.00011014,2]
[334658835,1723409827665,-302889.0,0.00011014,2]
[334658836,1723409827689,-504.0,0.0001102,2]
[334658837,1723409827717,-203.01,0.00011036,2]
[334658838,1723409827743,-287.2133825,0.00011093,2]
[334658839,1723409827768,-157.87,0.00011099,2]
[334658840,1723409827791,-214.0,0.000111,2]
[334658841,1723409827813,-202.0,0.000111,2]
[334658842,1723409827835,-1384.13878,0.00011103,2]
[334658843,1723409827858,-459.40376201,0.00011103,2]
[334658844,1723409827882,-166.7430339,0.00011105,2]
[334658845,1723409827905,-7000.0,0.00011105,2]
[334658846,1723409827927,-2200.59357442,0.00011105,2]
[334658847,1723409827949,-2840.85553108,0.00011105,2]
[334658848,1723409827972,-3120.33367931,0.00011105,2]
[334658849,1723409827994,-313.69504062,0.00011105,2]
[334658850,1723409828017,-3081.5129697,0.00011105,2]
[334658851,1723409828040,-287.65506416,0.00011105,2]
[334658852,1723409828065,-962.26073749,0.00011105,2]
[334658853,1723409828087,-892.04452683,0.00011105,2]
[334658854,1723409828111,-400.0,0.00011105,2]
[334658855,1723409828134,-364.13857336,0.00011105,2]
[334658856,1723409828154,-440.02330588,0.00011105,2]
[334658857,1723409828177,-155.10302195,0.00011105,2]
[334658858,1723409828201,-164.35838013,0.00011105,2]
[334658859,1723409828223,-218.88046172,0.00011105,2]
[334658860,1723409828244,-170.2744059,0.00011105,2]
[334658861,1723409828264,-594.98831399,0.00011105,2]
[334658862,1723409828284,-1556.56701969,0.00011105,2]
[334658863,1723409828305,-2111.63219542,0.00011105,2]
[334658864,1723409828325,-165.655,0.00011105,2]
[334658865,1723409828345,-155.0,0.00011105,2]
[334658866,1723409828365,-155.12002778,0.00011105,2]
[334658867,1723409828386,-309.89325485,0.00011105,2]
[334658868,1723409828408,-155.07287781,0.00011105,2]
[334658869,1723409828432,-155.0,0.00011105,2]
[334658870,1723409828454,-10742.04021264,0.00011105,2]
[334658871,1723409828480,-155.0,0.00011105,2]
[334658872,1723409828501,-155.0,0.00011105,2]
[334658873,1723409828521,-3409.77583925,0.00011105,2]
[334658874,1723409828541,-8744.69390815,0.00011105,2]
[334658875,1723409828561,-5866.28834906,0.00011105,2]
[334658876,1723409828581,-3032.072673,0.00011105,2]
[334658877,1723409828602,-155.04598274,0.00011105,2]
[334658878,1723409828621,-2145.43588228,0.00011105,2]
[334658879,1723409828642,-1275.34900939,0.00011105,2]
[334658880,1723409828661,-155.06617051,0.00011105,2]
[334658881,1723409828682,-330.12618987,0.00011105,2]
[334658882,1723409828704,-719.82594028,0.00011105,2]
[334658883,1723409828729,-155.15050337,0.00011105,2]
[334658884,1723409828750,-698.86020573,0.00011105,2]
[334658885,1723409828771,-1138.87080337,0.00011105,2]
[334658886,1723409828795,-155.0,0.00011105,2]
[334658887,1723409828816,-165.49338695,0.00011105,2]
[334658888,1723409828840,-197.09206619,0.00011105,2]
[334658889,1723409828861,-155.26576172,0.00011105,2]
[334658890,1723409828883,-155.0,0.00011105,2]
[334658891,1723409828905,-206.72516919,0.00011105,2]
[334658892,1723409828926,-251.0529684,0.00011105,2]
[334658893,1723409828948,-155.90135846,0.00011105,2]
[334658894,1723409828969,-248.91207748,0.00011105,2]
[334658895,1723409828994,-264.66074343,0.00011105,2]
[334658896,1723409829015,-155.26505857,0.00011105,2]
[334658897,1723409829035,-155.0,0.00011105,2]
[334658898,1723409829056,-297.42341449,0.00011105,2]
[334658899,1723409829079,-155.0,0.00011105,2]
[334658900,1723409829104,-155.0,0.00011105,2]
[334658901,1723409829125,-309.22609826,0.00011105,2]
[334658902,1723409829146,-155.09738777,0.00011105,2]
[334658903,1723409829167,-528.80773361,0.00011105,2]
[334658904,1723409829188,-155.07104132,0.00011105,2]
[334658905,1723409829209,-155.0,0.00011105,2]
[334658906,1723409829242,-155.10481648,0.00011105,2]
[334658907,1723409829263,-155.07664985,0.00011105,2]
[334658908,1723409829284,-256.18950825,0.00011105,2]
[334658909,1723409829306,-12825.74128476,0.00011105,2]
[334658910,1723409829327,-347.64612934,0.00011105,2]
[334658911,1723409829348,-155.0,0.00011105,2]
[334658912,1723409829369,-2210.9421767,0.00011105,2]
[334658913,1723409829390,-536.13723106,0.00011105,2]
[334658914,1723409829569,-155.853652,0.00011105,2]
[334658915,1723409829590,-159.58732349,0.00011105,2]
[334658916,1723409829610,-357.40219692,0.00011105,2]
[334658917,1723409829630,-1052.91723798,0.00011105,2]
[334658918,1723409829650,-155.0,0.00011105,2]
[334658919,1723409829672,-1263.0163,0.00011105,2]
[334658920,1723409829693,-155.1436986,0.00011105,2]
[334658921,1723409829718,-1004.57944751,0.00011105,2]
[334658922,1723409829752,-385.26710227,0.00011105,2]
[334658923,1723409829774,-255.13733329,0.00011105,2]
[334658924,1723409829797,-155.0,0.00011105,2]
[334658925,1723409829818,-155.0,0.00011105,2]
[334658926,1723409829841,-5403.00141948,0.00011105,2]
[334658927,1723409829862,-367.83900343,0.00011105,2]
[334658928,1723409829884,-150.0,0.00011105,2]
[334658929,1723409829907,-223.32222081,0.00011105,2]
[334658930,1723409829927,-150.11117128,0.00011105,2]
[334658931,1723409829949,-150.15444316,0.00011105,2]
[334658932,1723409829970,-238.43603967,0.00011105,2]
[334658933,1723409829995,-272.31315312,0.00011105,2]
[334658934,1723409830016,-150.16636209,0.00011105,2]
[334658935,1723409830037,-150.23819222,0.00011105,2]
[334658936,1723409830059,-150.0,0.00011105,2]
[334658937,1723409830081,-151.32802355,0.00011105,2]
[334658938,1723409830104,-150.0,0.00011105,2]
[334658939,1723409830126,-150.37914765,0.00011105,2]
[334658940,1723409830146,-162.00426287,0.00011105,2]
[334658941,1723409830166,-150.51386588,0.00011105,2]
[334658942,1723409830187,-150.2873685,0.00011105,2]
[334658943,1723409830207,-1257.41208312,0.00011105,2]
[334658944,1723409830232,-711.34381562,0.00011105,2]
[334658945,1723409830253,-1019.3939972,0.00011105,2]
[334658946,1723409830275,-200.0,0.0001111,2]
[334658947,1723409830296,-200.0,0.0001111,2]
[334658948,1723409830317,-200.0,0.0001111,2]
[334658949,1723409830338,-2000.0,0.00011123,2]
[334658950,1723409830359,-200.0,0.00011123,2]
[334658951,1723409830380,-34620.34521488,0.00011186,2]
[334658952,1723409830402,-200.0,0.00011221,2]
[334658953,1723409830424,-200.0,0.00011221,2]
[334658954,1723409830447,-763.48,0.00011231,2]
[334658955,1723409830475,-2000.0,0.00011234,2]
[334658956,1723409830496,-200.0,0.00011234,2]
[334658957,1723409830518,-150.0,0.00011299,2]
[334658958,1723409830539,-530.92,0.00011299,2]
[334658959,1723409830563,-530.92,0.00011299,2]
[334658960,1723409830585,-200.0,0.00011333,2]
[334658961,1723409830606,-200.0,0.00011333,2]
[334658962,1723409830630,-2000.0,0.00011347,2]
[334658963,1723409830651,-200.0,0.00011347,2]
[334658964,1723409830673,-233.69596528,0.00011352,5]
[334658965,1723409830694,-399.81996742,0.00011369,2]
[334658966,1723409830720,-192.96,0.000114,2]
[334658967,1723409830745,-150.0,0.000114,2]
[334658968,1723409830767,-530.92,0.000114,2]
[334658969,1723409830791,-2060.83811,0.0001144,2]
[334658970,1723409830812,-200.0,0.00011447,2]
[334658971,1723409830833,-200.0,0.00011447,2]
[334658972,1723409830854,-356.49,0.000115,2]
[334658973,1723409830942,372.08019945,0.00011,2]
[334658974,1723409835134,356.49,0.000115,2]
[334658975,1723409837308,447.94,0.00011,2]
[334658976,1723409844715,-4693.5685518,0.00011593,2]
[334658977,1723409844738,-985.24185082,0.00011601,2]
[334658978,1723409844760,-596.8,0.00011994,2]
[334658979,1723409844785,-5000.0,0.00012,2]
[334658980,1723409844808,-200.0,0.00012,2]
[334658981,1723409844831,-155.07132969,0.00012,2]
[334658982,1723409844853,-600.0,0.00012,2]
[334658983,1723409844877,-572.88,0.00012,2]
[334658984,1723409844899,-572.88,0.00012,2]
[334658985,1723409844921,-572.88,0.00012,2]
[334658986,1723409844943,-572.88,0.00012,2]
[334658987,1723409844966,-572.88,0.00012,2]
[334658988,1723409844989,-572.88,0.00012,2]
[334658989,1723409845010,-572.88,0.00012,2]
[334658990,1723409845033,-572.88,0.00012,2]
[334658991,1723409845055,-572.88,0.00012,2]
[334658992,1723409845078,-572.88,0.00012,2]
[334658993,1723409845102,-572.88,0.00012,2]
[334658994,1723409845126,-572.88,0.00012,2]
[334658995,1723409845150,-572.88,0.00012,2]
[334658996,1723409845173,-572.88,0.00012,2]
[334658997,1723409845197,-572.88,0.00012,2]
[334658998,1723409845219,-572.88,0.00012,2]
[334658999,1723409845242,-572.88,0.00012,2]
[334659000,1723409845264,-572.88,0.00012,2]
[334659001,1723409845287,-572.88,0.00012,2]
[334659002,1723409845309,-572.88,0.00012,2]
[334659003,1723409845330,-572.88,0.00012,2]
[334659004,1723409845352,-572.88,0.00012,2]
[334659005,1723409845374,-572.88,0.00012,2]
[334659006,1723409845395,-572.88,0.00012,2]
[334659007,1723409845418,-572.88,0.00012,2]
[334659008,1723409845441,-572.88,0.00012,2]
[334659009,1723409845463,-572.88,0.00012,2]
[334659010,1723409845490,-572.88,0.00012,2]
[334659011,1723409845513,-572.88,0.00012,2]
[334659012,1723409845535,-572.88,0.00012,2]
[334659013,1723409845557,-572.88,0.00012,2]
[334659014,1723409845580,-572.88,0.00012,2]
[334659015,1723409845603,-572.88,0.00012,2]
[334659016,1723409845625,-572.88,0.00012,2]
[334659017,1723409845648,-572.88,0.00012,2]
[334659018,1723409845671,-572.88,0.00012,2]
[334659019,1723409845694,-572.88,0.00012,2]
[334659020,1723409845722,-572.88,0.00012,2]
[334659021,1723409845748,-572.88,0.00012,2]
[334659022,1723409845772,-572.88,0.00012,2]
[334659023,1723409845798,-572.88,0.00012,2]
[334659024,1723409845821,-572.88,0.00012,2]
[334659025,1723409845843,-572.88,0.00012,2]
[334659026,1723409845866,-572.88,0.00012,2]
[334659027,1723409845889,-572.88,0.00012,2]
[334659028,1723409845911,-572.88,0.00012,2]
[334659029,1723409845932,-572.88,0.00012,2]
[334659030,1723409845953,-572.88,0.00012,2]
[334659031,1723409845975,-572.88,0.00012,2]
[334659032,1723409845999,-572.88,0.00012,2]
[334659033,1723409846020,-572.88,0.00012,2]
[334659034,1723409846043,-572.88,0.00012,2]
[334659035,1723409846064,-572.88,0.00012,2]
[334659036,1723409846085,-572.88,0.00012,2]
[334659037,1723409846107,-572.88,0.00012,2]
[334659038,1723409846128,-572.88,0.00012,2]
[334659039,1723409846149,-572.88,0.00012,2]
[334659040,1723409846170,-572.88,0.00012,2]
[334659041,1723409846192,-572.88,0.00012,2]
[334659042,1723409846213,-572.88,0.00012,2]
[334659043,1723409846236,-572.88,0.00012,2]
[334659044,1723409846258,-572.88,0.00012,2]
[334659045,1723409846280,-572.88,0.00012,2]
[334659046,1723409846301,-572.88,0.00012,2]
[334659047,1723409846469,-572.88,0.00012,2]
[334659048,1723409846493,-572.88,0.00012,2]
[334659049,1723409846515,-572.88,0.00012,2]
[334659050,1723409846540,-572.88,0.00012,2]
[334659051,1723409846563,-572.88,0.00012,2]
[334659052,1723409846588,-572.88,0.00012,2]
[334659053,1723409846614,-572.88,0.00012,2]
[334659054,1723409846636,-572.88,0.00012,2]
[334659055,1723409846660,-572.88,0.00012,2]
[334659056,1723409846682,-572.88,0.00012,2]
[334659057,1723409846706,-572.88,0.00012,2]
[334659058,1723409846730,-572.88,0.00012,2]
[334659059,1723409846753,-572.88,0.00012,2]
[334659060,1723409846777,-572.88,0.00012,2]
[334659061,1723409846800,-572.88,0.00012,2]
[334659062,1723409846821,-572.88,0.00012,2]
[334659063,1723409846845,-572.88,0.00012,2]
[334659064,1723409846867,-572.88,0.00012,2]
[334659065,1723409846891,-572.88,0.00012,2]
[334659066,1723409846912,-572.88,0.00012,2]
[334659067,1723409846934,-572.88,0.00012,2]
[334659068,1723409846957,-572.88,0.00012,2]
[334659069,1723409846981,-572.88,0.00012,2]
[334659070,1723409847002,-572.88,0.00012,2]
[334659071,1723409847024,-572.88,0.00012,2]
[334659072,1723409847045,-572.88,0.00012,2]
[334659073,1723409847066,-572.88,0.00012,2]
[334659074,1723409847088,-572.88,0.00012,2]
[334659075,1723409847110,-572.88,0.00012,2]
[334659076,1723409847133,-572.88,0.00012,2]
[334659077,1723409847154,-572.88,0.00012,2]
[334659078,1723409847176,-572.88,0.00012,2]
[334659079,1723409847198,-572.88,0.00012,2]
[334659080,1723409847220,-572.88,0.00012,2]
[334659081,1723409847243,-572.88,0.00012,2]
[334659082,1723409847264,-572.88,0.00012,2]
[334659083,1723409847286,-2060.83811,0.0001206,2]
[334659084,1723409847307,-420.0,0.00012102,2]
[334659085,1723409847329,-420.0,0.00012114,2]
[334659086,1723409847355,-426.33,0.00012146,2]
[334659087,1723409847380,-300.0,0.00012146,2]
[334659088,1723409847406,-300.0,0.00012146,2]
[334659089,1723409847431,-1061.6,0.00012146,2]
[334659090,1723409847458,-504.0,0.00012244,2]
[334659091,1723409847488,-203.01,0.00012262,2]
[334659092,1723409847511,-2870.93292422,0.000123,2]
[334659093,1723409847532,-168.8587113,0.0001236,2]
[334659094,1723409847556,-1164.897083,0.00012451,2]
[334659095,1723409847579,-803.4300906,0.00012451,2]
[334659096,1723409847607,-4693.5685518,0.00012451,2]
[334659097,1723409847629,-619.0,0.0001246,2]
[334659098,1723409847650,-697618.35206481,0.0001246,2]
[334659099,1723409847672,-151.803401,0.0001246,2]
[334659100,1723409847693,-187.785898,0.0001246,2]
[334659101,1723409847722,-290.267748,0.0001246,2]
[334659102,1723409847750,-151.59673,0.0001246,2]